[Event "9th RTU Open 2019"]
[Site "Riga"]
[Date "2019.08.07"]
[Round "4.27"]
[White "Sowray, Peter J"]
[Black "Lalith Babu M R"]
[Result "0-1"]
[ECO "E46"]
[WhiteElo "2334"]
[BlackElo "2580"]
[Annotator "ChessBase"]
[PlyCount "82"]
[EventDate "2019.08.05"]
[EventType "swiss"]
[EventCountry "LAT"]
[SourceTitle "playchess.com"]
[Source "ChessBase"]
[SourceQuality "1"]
[TimeControl "5400+30"]

1. d4 {[%emt 0:00:00]} Nf6 {[%emt 0:00:00]} 2. c4 {[%emt 0:00:00]} e6 {[%emt 0:00:00]} 3. Nc3 {[%emt 0:00:00]} Bb4 {[%emt 0:00:00]} 4. e3 {[%emt 0:00:22]} O-O {[%emt 0:00:00]} 5. Nge2 {[%emt 0:00:06]} Re8 {[%emt 0:00:00]} 6. a3 {[%emt 0:01:29]} Bf8 {[%emt 0:00:14]} 7. Ng3 {[%emt 0:00:23]} d5 {[%emt 0:00:05]} 8. Be2 {[%emt 0:00:23]} b6 {[%emt 0:00:08]} 9. O-O {[%emt 0:01:39]} c5 {[%emt 0:04:08]} 10. dxc5 {[%emt 0:08:33]} bxc5 {[%emt 0:00:04]} 11. Bf3 {[%emt 0:02:27]} Bb7 {[%emt 0:05:19]} 12. Nge2 {[%emt 0:07:53]} Nc6 {[%emt 0:16:45]} 13. cxd5 {[%emt 0:04:16]} Ne5 {[%emt 0:00:33]} 14. dxe6 {[%emt 0:01:34]} Nxf3+ {[%emt 0:00:24]} 15. gxf3 {[%emt 0:00:06]} Qxd1 {[%emt 0:02:18]} 16. exf7+ {[%emt 0:04:04]} Kxf7 {[%emt 0:01:29]} 17. Rxd1 {[%emt 0:00:21]} Bxf3 {[%emt 0:00:04]} 18. Rd2 {[%emt 0:09:09]} h5 {[%emt 0:06:46]} 19. Kf1 {[%emt 0:13:07]} Bc6 {[%emt 0:08:33]} 20. h3 {[%emt 0:16:50]} a5 {[%emt 0:03:13]} 21. Nf4 {[%emt 0:01:35]} Rab8 {[%emt 0:03:14]} 22. Nfd5 {[%emt 0:01:39]} Nxd5 {[%emt 0:06:13]} 23. Nxd5 {[%emt 0:00:07]} g6 {[%emt 0:00:17]} 24. Nc3 {[%emt 0:03:18]} Bf3 {[%emt 0:05:23]} 25. Rc2 {[%emt 0:01:45]} Rb3 {[%emt 0:03:06]} 26. Bd2 {[%emt 0:03:27]} Reb8 {[%emt 0:00:12]} 27. Na4 {[%emt 0:02:16]} Bc6 {[%emt 0:04:14]} 28. Nxc5 {[%emt 0:02:08]} Rxb2 {[%emt 0:00:05]} 29. Rac1 {[%emt 0:01:17]} Rxc2 {[%emt 0:00:39]} 30. Rxc2 {[%emt 0:00:10]} Bb5+ {[%emt 0:00:42]} 31. Kg2 {[%emt 0:03:13]} Rc8 {[%emt 0:00:08]} 32. Bxa5 {[%emt 0:00:07]} Rxc5 {[%emt 0:01:22]} 33. Rxc5 {[%emt 0:00:31]} Bxc5 {[%emt 0:00:04]} 34. Bb4 {[%emt 0:00:06]} Bxb4 {[%emt 0:04:26]} 35. axb4 {[%emt 0:00:02]} h4 {[%emt 0:00:05]} 36. f4 {[%emt 0:09:21]} Bc6+ {[%emt 0:00:21]} 37. Kf2 {[%emt 0:00:11]} Kf6 {[%emt 0:00:06]} 38. Kf1 {[%emt 0:02:25]} Kf5 {[%emt 0:00:09]} 39. Kg1 {[%emt 0:00:45]} Ke4 {[%emt 0:00:08]} 40. Kf2 {[%emt 0:00:06]} Kd3 {[%emt 0:01:04]} 41. b5 {[%emt 0:00:15]} Bb7 {[%emt 0:00:04]} 0-1

[Event "9th RTU Open 2019"]
[Site "Riga"]
[Date "2019.08.07"]
[Round "4.28"]
[White "Kramer, Julian"]
[Black "Kulaots, Kaido"]
[Result "1/2-1/2"]
[ECO "B36"]
[WhiteElo "2352"]
[BlackElo "2560"]
[Annotator "ChessBase"]
[PlyCount "92"]
[EventDate "2019.08.05"]
[EventType "swiss"]
[EventCountry "LAT"]
[SourceTitle "playchess.com"]
[Source "ChessBase"]
[SourceQuality "1"]
[TimeControl "5400+30"]

1. e4 {[%emt 0:00:00]} c5 {[%emt 0:00:00]} 2. Nf3 {[%emt 0:00:09]} Nc6 {[%emt 0:00:00]} 3. d4 {[%emt 0:00:11]} cxd4 {[%emt 0:00:06]} 4. Nxd4 {[%emt 0:00:05]} g6 {[%emt 0:00:42]} 5. c4 {[%emt 0:00:33]} Nf6 {[%emt 0:00:38]} 6. Nc3 {[%emt 0:00:07]} Nxd4 {[%emt 0:00:10]} 7. Qxd4 {[%emt 0:00:06]} d6 {[%emt 0:00:06]} 8. Be2 {[%emt 0:04:44]} Bg7 {[%emt 0:00:14]} 9. Be3 {[%emt 0:00:07]} O-O {[%emt 0:00:26]} 10. Qd2 {[%emt 0:00:05]} Be6 {[%emt 0:03:56]} 11. f3 {[%emt 0:02:29]} Qa5 {[%emt 0:08:47]} 12. Nb5 {[%emt 0:07:37]} Qxd2+ {[%emt 0:01:08]} 13. Kxd2 {[%emt 0:00:05]} Nd7 {[%emt 0:03:56]} 14. Nd4 {[%emt 0:10:29]} Nc5 {[%emt 0:03:05]} 15. b4 {[%emt 0:04:08]} Nd7 {[%emt 0:03:21]} 16. Rhc1 {[%emt 0:05:27]} a5 {[%emt 0:01:38]} 17. a3 {[%emt 0:00:15]} Rfc8 {[%emt 0:06:35]} 18. Rab1 {[%emt 0:03:12]} axb4 {[%emt 0:11:55]} 19. axb4 {[%emt 0:00:05]} b6 {[%emt 0:14:56]} 20. Ra1 {[%emt 0:22:02]} h5 {[%emt 0:00:52]} 21. Rxa8 {[%emt 0:06:25]} Rxa8 {[%emt 0:00:05]} 22. Nxe6 {[%emt 0:00:06]} fxe6 {[%emt 0:00:23]} 23. Rc2 {[%emt 0:10:39]} Kf7 {[%emt 0:07:13]} 24. c5 {[%emt 0:02:07]} bxc5 {[%emt 0:02:04]} 25. bxc5 {[%emt 0:00:05]} dxc5 {[%emt 0:01:17]} 26. Bxc5 {[%emt 0:01:05]} Be5 {[%emt 0:04:32]} 27. g3 {[%emt 0:04:11]} Nxc5 {[%emt 0:04:35]} 28. Rxc5 {[%emt 0:00:05]} Bd4 {[%emt 0:00:04]} 29. Rc6 {[%emt 0:00:41]} Ra2+ {[%emt 0:00:19]} 30. Kd1 {[%emt 0:02:53]} Be3 {[%emt 0:01:59]} 31. Bc4 {[%emt 0:01:10]} Rxh2 {[%emt 0:01:11]} 32. Rxe6 {[%emt 0:00:30]} Rg2 {[%emt 0:01:45]} 33. f4 {[%emt 0:01:47]} Rxg3 {[%emt 0:04:01]} 34. f5 {[%emt 0:00:05]} gxf5 {[%emt 0:05:27]} 35. exf5 {[%emt 0:00:39]} Kf8 {[%emt 0:00:04]} 36. Rg6 {[%emt 0:01:26]} h4 {[%emt 0:00:28]} 37. Ke2 {[%emt 0:00:14]} Bd4 {[%emt 0:00:32]} 38. Rxg3 {[%emt 0:00:12]} hxg3 {[%emt 0:00:04]} 39. Kf3 {[%emt 0:00:03]} Be5 {[%emt 0:00:04]} 40. Be6 {[%emt 0:00:08]} Kg7 {[%emt 0:00:05]} 41. Kg2 {[%emt 0:00:04]} Kf6 {[%emt 0:00:04]} 42. Kf3 {[%emt 0:00:05]} Kg5 {[%emt 0:00:05]} 43. Kg2 {[%emt 0:00:05]} Kf4 {[%emt 0:00:03]} 44. Bd7 {[%emt 0:00:04]} Kg5 {[%emt 0:00:04]} 45. Be6 {[%emt 0:00:04]} Kf4 {[%emt 0:00:03]} 46. Bd7 {[%emt 0:00:03]} Kg5 {[%emt 0:00:03]} 1/2-1/2

[Event "9th RTU Open 2019"]
[Site "Riga"]
[Date "2019.08.07"]
[Round "4.29"]
[White "Stany, G.A."]
[Black "Runets, Ivan"]
[Result "1-0"]
[ECO "B80"]
[WhiteElo "2525"]
[BlackElo "2239"]
[Annotator "ChessBase"]
[PlyCount "57"]
[EventDate "2019.08.05"]
[EventType "swiss"]
[EventCountry "LAT"]
[SourceTitle "playchess.com"]
[Source "ChessBase"]
[SourceQuality "1"]
[TimeControl "5400+30"]

1. e4 {[%emt 0:00:00]} c5 {[%emt 0:00:04]} 2. Nf3 {[%emt 0:00:00]} Nc6 {[%emt 0:00:04]} 3. d4 {[%emt 0:00:05]} cxd4 {[%emt 0:00:06]} 4. Nxd4 {[%emt 0:00:03]} e6 {[%emt 0:00:13]} 5. Nc3 {[%emt 0:00:08]} d6 {[%emt 0:00:12]} 6. Be3 {[%emt 0:00:35]} Nf6 {[%emt 0:00:07]} 7. f3 {[%emt 0:01:08]} Be7 {[%emt 0:01:46]} 8. Qd2 {[%emt 0:00:05]} a6 {[%emt 0:01:54]} 9. O-O-O {[%emt 0:03:05]} O-O {[%emt 0:03:22]} 10. Kb1 {[%emt 0:00:24]} Qc7 {[%emt 0:01:18]} 11. g4 {[%emt 0:00:25]} b5 {[%emt 0:04:33]} 12. h4 {[%emt 0:15:20]} Bb7 {[%emt 0:07:27]} 13. g5 {[%emt 0:08:32]} Nd7 {[%emt 0:03:42]} 14. h5 {[%emt 0:10:40]} Nxd4 {[%emt 0:06:39]} 15. Qxd4 {[%emt 0:07:27]} Ne5 {[%emt 0:02:54]} 16. h6 {[%emt 0:01:06]} Rfc8 {[%emt 0:11:44]} 17. f4 {[%emt 0:11:54]} b4 {[%emt 0:03:19]} 18. Qxb4 {[%emt 0:01:58]} Nd7 {[%emt 0:04:06]} 19. hxg7 {[%emt 0:11:20]} Rab8 {[%emt 0:02:10]} 20. Ka1 {[%emt 0:00:06]} Nc5 {[%emt 0:07:44]} 21. Qd4 {[%emt 0:01:48]} Ba8 {[%emt 0:14:53]} 22. Qd2 {[%emt 0:13:37]} Kxg7 {[%emt 0:03:56]} 23. Qh2 {[%emt 0:00:05]} Rh8 {[%emt 0:00:33]} 24. Bd4+ {[%emt 0:01:00]} e5 {[%emt 0:05:50]} 25. fxe5 {[%emt 0:00:09]} Kg8 {[%emt 0:02:28]} 26. e6 {[%emt 0:01:54]} Bxg5 {[%emt 0:00:21]} 27. exf7+ {[%emt 0:01:57]} Qxf7 {[%emt 0:01:17]} 28. Rg1 {[%emt 0:00:04]} Ne6 {[%emt 0:01:00]} 29. Bc4 {[%emt 0:00:08]} 1-0

[Event "9th RTU Open 2019"]
[Site "Riga"]
[Date "2019.08.07"]
[Round "4.30"]
[White "Stremavicius, Titas"]
[Black "Borisovsky, Dmitry"]
[Result "1-0"]
[ECO "A30"]
[WhiteElo "2474"]
[BlackElo "2326"]
[Annotator "ChessBase"]
[PlyCount "149"]
[EventDate "2019.08.05"]
[EventType "swiss"]
[EventCountry "LAT"]
[SourceTitle "playchess.com"]
[Source "ChessBase"]
[SourceQuality "1"]
[TimeControl "5400+30"]

1. c4 {[%emt 0:00:00]} Nf6 {[%emt 0:00:00]} 2. Nf3 {[%emt 0:00:00]} c5 {[%emt 0:00:38]} 3. g3 {[%emt 0:01:18]} d5 {[%emt 0:04:41]} 4. cxd5 {[%emt 0:00:36]} Nxd5 {[%emt 0:00:05]} 5. b3 {[%emt 0:01:51]} Nc6 {[%emt 0:05:47]} 6. Bb2 {[%emt 0:00:13]} f6 {[%emt 0:03:45]} 7. d3 {[%emt 0:01:36]} e5 {[%emt 0:00:15]} 8. Nbd2 {[%emt 0:00:15]} Be6 {[%emt 0:01:05]} 9. Rc1 {[%emt 0:02:42]} Qd7 {[%emt 0:06:46]} 10. a3 {[%emt 0:04:16]} Be7 {[%emt 0:08:44]} 11. Bg2 {[%emt 0:01:53]} O-O {[%emt 0:00:18]} 12. O-O {[%emt 0:00:00]} Rac8 {[%emt 0:11:39]} 13. Ne4 {[%emt 0:12:45]} Na5 {[%emt 0:08:27]} 14. Nfd2 {[%emt 0:03:59]} b5 {[%emt 0:01:42]} 15. Nc3 {[%emt 0:03:46]} Nb6 {[%emt 0:05:26]} 16. a4 {[%emt 0:09:41]} b4 {[%emt 0:06:08]} 17. Ncb1 {[%emt 0:00:49]} Rfd8 {[%emt 0:05:18]} 18. Qc2 {[%emt 0:04:19]} Nc6 {[%emt 0:01:49]} 19. Rfe1 {[%emt 0:10:23]} Nd4 {[%emt 0:09:14]} 20. Qd1 {[%emt 0:05:29]} Qe8 {[%emt 0:16:54]} 21. a5 {[%emt 0:10:10]} Nd5 {[%emt 0:00:04]} 22. Nc4 {[%emt 0:01:15]} Qh5 {[%emt 0:00:59]} 23. Nbd2 {[%emt 0:04:16]} Nb5 {[%emt 0:00:09]} 24. Bf3 {[%emt 0:04:47]} Qg6 {[%emt 0:01:22]} 25. Nf1 {[%emt 0:01:38]} Ndc3 {[%emt 0:00:22]} 26. Bxc3 {[%emt 0:00:07]} Nxc3 {[%emt 0:00:03]} 27. Qc2 {[%emt 0:01:16]} Rd4 {[%emt 0:01:02]} 28. a6 {[%emt 0:03:31]} Qe8 {[%emt 0:00:42]} 29. Ra1 {[%emt 0:02:46]} Bd8 {[%emt 0:00:31]} 30. Nfd2 {[%emt 0:02:17]} Bc7 {[%emt 0:00:12]} 31. Ne4 {[%emt 0:00:49]} Nxe4 {[%emt 0:00:33]} 32. Bxe4 {[%emt 0:00:06]} f5 {[%emt 0:00:30]} 33. Bb7 {[%emt 0:01:43]} Rcd8 {[%emt 0:00:10]} 34. Na5 {[%emt 0:02:38]} Bd7 35. e3 {[%emt 0:00:21]} Rg4 {[%emt 0:02:03]} 36. Qxc5 {[%emt 0:00:04]} Bb6 {[%emt 0:00:11]} 37. Qc2 {[%emt 0:00:53]} Bb5 {[%emt 0:00:01]} 38. Nc4 {[%emt 0:00:33]} Bc7 {[%emt 0:03:05]} 39. d4 {[%emt 0:02:18]} exd4 {[%emt 0:00:00]} 40. Qxf5 {[%emt 0:00:59]} Bd7 {[%emt 0:00:00]} 41. Qc5 {[%emt 0:00:01]} Bb8 {[%emt 0:00:00]} 42. exd4 {[%emt 0:00:28]} Qf8 {[%emt 0:00:00]} 43. Ne5 {[%emt 0:00:36]} Qxc5 {[%emt 0:00:09]} 44. dxc5 {[%emt 0:00:06]} Rd4 {[%emt 0:00:18]} 45. Nf3 {[%emt 0:01:17]} Rd3 {[%emt 0:00:10]} 46. Be4 {[%emt 0:00:11]} Rc3 {[%emt 0:00:11]} 47. Bd5+ {[%emt 0:01:12]} Kf8 {[%emt 0:00:46]} 48. Ng5 {[%emt 0:00:40]} Bf5 {[%emt 0:00:05]} 49. Be4 {[%emt 0:00:35]} h6 {[%emt 0:00:20]} 50. Bxf5 {[%emt 0:00:53]} hxg5 {[%emt 0:00:02]} 51. Rac1 {[%emt 0:00:41]} Rxb3 {[%emt 0:00:12]} 52. Rcd1 {[%emt 0:00:29]} Bc7 {[%emt 0:02:14]} 53. Bd7 {[%emt 0:00:30]} Rf3 {[%emt 0:00:38]} 54. Kg2 {[%emt 0:00:30]} Rf7 {[%emt 0:00:15]} 55. c6 {[%emt 0:00:08]} Re7 {[%emt 0:00:14]} 56. Rxe7 {[%emt 0:00:47]} Kxe7 {[%emt 0:00:02]} 57. Kf3 {[%emt 0:00:33]} Rf8+ {[%emt 0:01:36]} 58. Ke2 {[%emt 0:00:32]} Bb6 {[%emt 0:00:22]} 59. f3 {[%emt 0:00:14]} Rf6 {[%emt 0:00:09]} 60. Rb1 {[%emt 0:00:38]} Ba5 {[%emt 0:00:50]} 61. Ke3 {[%emt 0:00:35]} Kd6 {[%emt 0:00:39]} 62. Ke4 {[%emt 0:00:33]} Kc7 {[%emt 0:00:22]} 63. f4 {[%emt 0:00:06]} gxf4 {[%emt 0:00:19]} 64. gxf4 {[%emt 0:00:01]} Kb6 {[%emt 0:00:30]} 65. Rg1 {[%emt 0:01:17]} Rf7 {[%emt 0:00:51]} 66. Rg5 {[%emt 0:00:26]} b3 {[%emt 0:00:22]} 67. Rg3 {[%emt 0:00:21]} Kxa6 {[%emt 0:00:27]} 68. Rxb3 {[%emt 0:00:05]} Bc7 {[%emt 0:00:31]} 69. f5 {[%emt 0:00:43]} Bxh2 {[%emt 0:00:41]} 70. Kd5 {[%emt 0:00:33]} Re7 {[%emt 0:00:22]} 71. Be6 {[%emt 0:00:02]} Bc7 {[%emt 0:00:34]} 72. Kc5 {[%emt 0:00:47]} Bb6+ {[%emt 0:00:03]} 73. Kd6 {[%emt 0:00:25]} Re8 {[%emt 0:00:12]} 74. c7 {[%emt 0:00:48]} Kb7 {[%emt 0:00:14]} 75. Kd7 {[%emt 0:00:29]} 1-0

[Event "9th RTU Open 2019"]
[Site "Riga"]
[Date "2019.08.07"]
[Round "4.31"]
[White "Kjartansson, Gudmundur"]
[Black "Rakshitta Ravi"]
[Result "1-0"]
[ECO "D36"]
[WhiteElo "2470"]
[BlackElo "2112"]
[Annotator "ChessBase"]
[PlyCount "95"]
[EventDate "2019.08.05"]
[EventType "swiss"]
[EventCountry "LAT"]
[SourceTitle "playchess.com"]
[Source "ChessBase"]
[SourceQuality "1"]
[TimeControl "5400+30"]

1. d4 {[%emt 0:02:00]} Nf6 {[%emt 0:00:00]} 2. c4 {[%emt 0:00:05]} e6 {[%emt 0:00:00]} 3. Nc3 {[%emt 0:00:13]} d5 {[%emt 0:00:00]} 4. cxd5 {[%emt 0:00:05]} exd5 {[%emt 0:00:03]} 5. Bg5 {[%emt 0:00:04]} Nbd7 {[%emt 0:00:12]} 6. e3 {[%emt 0:00:14]} c6 {[%emt 0:00:05]} 7. Bd3 {[%emt 0:00:15]} Be7 {[%emt 0:00:16]} 8. Nge2 {[%emt 0:00:29]} O-O {[%emt 0:00:10]} 9. Qc2 {[%emt 0:00:25]} h6 {[%emt 0:00:35]} 10. Bh4 {[%emt 0:01:09]} Re8 {[%emt 0:00:36]} 11. f3 {[%emt 0:03:28]} c5 {[%emt 0:01:07]} 12. O-O-O {[%emt 0:02:25]} c4 {[%emt 0:00:57]} 13. Bf5 {[%emt 0:00:15]} b5 {[%emt 0:00:46]} 14. Nxb5 {[%emt 0:01:12]} Qa5 {[%emt 0:00:14]} 15. Nbc3 {[%emt 0:00:38]} Rb8 {[%emt 0:00:25]} 16. Qa4 {[%emt 0:04:44]} Qb6 {[%emt 0:00:22]} 17. Rd2 {[%emt 0:00:35]} Bb4 {[%emt 0:01:26]} 18. e4 {[%emt 0:19:42]} g6 {[%emt 0:29:57]} 19. Bxf6 {[%emt 0:05:45]} gxf5 {[%emt 0:02:35]} 20. Bh4 {[%emt 0:15:37]} fxe4 {[%emt 0:01:02]} 21. Qc2 {[%emt 0:02:24]} e3 {[%emt 0:07:17]} 22. Rdd1 {[%emt 0:00:26]} Qa5 {[%emt 0:07:02]} 23. g4 {[%emt 0:01:07]} Ba3 {[%emt 0:07:38]} 24. Na4 {[%emt 0:05:03]} Nb6 {[%emt 0:04:38]} 25. Nac3 {[%emt 0:00:32]} Nd7 {[%emt 0:16:16]} 26. Na4 {[%emt 0:00:18]} Nb6 {[%emt 0:03:42]} 27. Nc5 {[%emt 0:07:31]} c3 {[%emt 0:06:47]} 28. Qxc3 {[%emt 0:01:34]} Bxb2+ {[%emt 0:03:16]} 29. Qxb2 {[%emt 0:00:32]} Nc4 {[%emt 0:00:05]} 30. Nb3 {[%emt 0:01:51]} Qa4 {[%emt 0:05:49]} 31. Qc2 {[%emt 0:00:11]} Qa3+ {[%emt 0:00:49]} 32. Kb1 {[%emt 0:00:03]} Nd2+ {[%emt 0:00:03]} 33. Rxd2 {[%emt 0:00:08]} exd2 {[%emt 0:00:01]} 34. Nc3 {[%emt 0:00:57]} Ba6 {[%emt 0:00:15]} 35. Nxd5 {[%emt 0:03:25]} Re2 {[%emt 0:01:40]} 36. Nf6+ {[%emt 0:07:54]} Kf8 {[%emt 0:00:23]} 37. Rd1 {[%emt 0:03:51]} Re3 {[%emt 0:00:18]} 38. Nd7+ {[%emt 0:00:53]} Kg8 {[%emt 0:00:50]} 39. Nf6+ {[%emt 0:01:24]} Kf8 {[%emt 0:00:03]} 40. Qc5+ {[%emt 0:00:53]} Qxc5 {[%emt 0:00:05]} 41. Nd7+ {[%emt 0:02:11]} Kg8 {[%emt 0:00:15]} 42. dxc5 {[%emt 0:01:51]} Rb4 {[%emt 0:00:01]} 43. Nf6+ {[%emt 0:01:00]} Kf8 {[%emt 0:00:49]} 44. Nd5 {[%emt 0:00:07]} Rbxb3+ {[%emt 0:01:11]} 45. axb3 {[%emt 0:00:07]} Rxb3+ {[%emt 0:00:07]} 46. Kc2 {[%emt 0:00:16]} Rxf3 {[%emt 0:00:15]} 47. Rxd2 {[%emt 0:00:28]} Bb7 {[%emt 0:00:06]} 48. Nf6 {[%emt 0:01:27]} 1-0

[Event "9th RTU Open 2019"]
[Site "Riga"]
[Date "2019.08.07"]
[Round "4.32"]
[White "Dordzhieva, Dinara"]
[Black "Bulmaga, Irina"]
[Result "1-0"]
[ECO "A14"]
[WhiteElo "2306"]
[BlackElo "2435"]
[Annotator "NA"]
[PlyCount "83"]
[EventDate "2019.08.05"]
[EventType "swiss"]
[EventCountry "LAT"]
[SourceTitle "playchess.com"]
[Source "ChessBase"]
[SourceQuality "1"]
[TimeControl "5400+30"]

1. Nf3 {[%emt 0:00:00]} Nf6 {[%emt 0:00:00]} 2. c4 {[%emt 0:00:00]} b6 {[%emt 0:00:00]} 3. g3 {[%emt 0:00:00]} Bb7 {[%emt 0:00:00]} 4. Bg2 {[%emt 0:00:00]} e6 {[%emt 0:00:07]} 5. O-O {[%emt 0:00:08]} Be7 {[%emt 0:00:05]} 6. b3 {[%emt 0:00:05]} O-O {[%emt 0:00:33]} 7. Bb2 {[%emt 0:00:07]} d5 {[%emt 0:00:40]} 8. e3 {[%emt 0:00:05]} dxc4 {[%emt 0:00:24]} 9. bxc4 {[%emt 0:00:18]} c5 {[%emt 0:00:07]} 10. Qe2 {[%emt 0:01:03]} Nc6 {[%emt 0:01:22]} 11. Nc3 {[%emt 0:03:06]} a6 {[%emt 0:03:30]} 12. Ne1 {[%emt 0:00:40]} Rb8 {[%emt 0:03:43]} 13. f4 {[%emt 0:02:32]} Qd7 {[%emt 0:01:13]} 14. g4 {[%emt 0:03:26]} Rfd8 {[%emt 0:03:49]} 15. g5 {[%emt 0:02:41]} Ne8 {[%emt 0:00:08]} 16. d3 {[%emt 0:04:19]} Nd6 {[%emt 0:05:35]} 17. Rf3 {[%emt 0:04:19]} b5 {[%emt 0:03:45]} 18. Rh3 {[%emt 0:02:50]} g6 {[%emt 0:00:34]} 19. cxb5 {[%emt 0:07:42]} axb5 {[%emt 0:03:51]} 20. Qg4 {[%emt 0:06:58]} e5 {[%emt 0:05:26]} 21. Qh4 {[%emt 0:07:27]} h5 {[%emt 0:00:10]} 22. e4 {[%emt 0:13:45]} exf4 {[%emt 0:08:48]} 23. Nd5 {[%emt 0:03:07]} Nd4 {[%emt 0:02:58]} 24. Nxe7+ {[%emt 0:09:18]} Qxe7 {[%emt 0:00:18]} 25. Nf3 {[%emt 0:04:13]} Ne8 {[%emt 0:19:28]} 26. Nxd4 {[%emt 0:03:11]} cxd4 {[%emt 0:00:20]} 27. Qxf4 {[%emt 0:02:55]} Rbc8 {[%emt 0:03:06]} 28. Rf1 {[%emt 0:00:04]} Ng7 {[%emt 0:01:56]} 29. Rhf3 {[%emt 0:01:11]} Rc2 {[%emt 0:19:56]} 30. Ba3 {[%emt 0:13:33]} b4 {[%emt 0:03:22]} 31. Bxb4 {[%emt 0:01:26]} Qxb4 {[%emt 0:02:27]} 32. Qxf7+ {[%emt 0:00:04]} Kh7 {[%emt 0:07:12]} 33. Rf6 {[%emt 0:00:21]} Rxg2+ {[%emt 0:00:39]} 34. Kxg2 {[%emt 0:00:13]} Qd2+ {[%emt 0:00:44]} 35. Kh1 {[%emt 0:00:18]} Qxg5 {[%emt 0:00:37]} 36. Rg1 {[%emt 0:01:01]} Bd5 {[%emt 0:00:34]} 37. exd5 {[%emt 0:00:57]} Qxd5+ {[%emt 0:00:20]} 38. Qxd5 {[%emt 0:00:03]} Rxd5 {[%emt 0:00:05]} 39. Rfxg6 {[%emt 0:00:02]} Nf5 {[%emt 0:00:42]} 40. R6g5 {[%emt 0:00:03]} Kh6 {[%emt 0:00:35]} 41. h4 {[%emt 0:00:12]} Re5 {[%emt 0:00:48]} 42. Rf1 {[%emt 0:00:16]} 1-0

[Event "9th RTU Open 2019"]
[Site "Riga"]
[Date "2019.08.07"]
[Round "4.33"]
[White "Grinev, Valeriy"]
[Black "Haitin, Ilja"]
[Result "1-0"]
[ECO "B36"]
[WhiteElo "2437"]
[BlackElo "2315"]
[Annotator "NA"]
[PlyCount "107"]
[EventDate "2019.08.05"]
[EventType "swiss"]
[EventCountry "LAT"]
[SourceTitle "playchess.com"]
[Source "ChessBase"]
[SourceQuality "1"]
[TimeControl "5400+30"]

1. Nf3 {[%emt 0:08:36]} c5 {[%emt 0:00:00]} 2. c4 {[%emt 0:00:24]} g6 {[%emt 0:00:00]} 3. d4 {[%emt 0:02:40]} cxd4 {[%emt 0:00:00]} 4. Nxd4 {[%emt 0:00:08]} Nc6 {[%emt 0:00:14]} 5. e4 {[%emt 0:00:08]} Nf6 {[%emt 0:00:17]} 6. Nc3 {[%emt 0:00:07]} Nxd4 {[%emt 0:00:07]} 7. Qxd4 {[%emt 0:00:18]} d6 {[%emt 0:00:05]} 8. Be3 {[%emt 0:00:08]} Bg7 {[%emt 0:00:05]} 9. f3 {[%emt 0:00:05]} O-O {[%emt 0:00:04]} 10. Qd2 {[%emt 0:00:04]} Qa5 {[%emt 0:01:28]} 11. Rc1 {[%emt 0:00:12]} Be6 {[%emt 0:00:42]} 12. b3 {[%emt 0:00:09]} a6 {[%emt 0:00:43]} 13. Na4 {[%emt 0:00:18]} Qxd2+ {[%emt 0:00:14]} 14. Kxd2 {[%emt 0:00:10]} Nd7 {[%emt 0:00:26]} 15. g4 {[%emt 0:00:29]} f5 {[%emt 0:01:36]} 16. exf5 {[%emt 0:00:38]} gxf5 {[%emt 0:00:00]} 17. h3 {[%emt 0:00:25]} d5 {[%emt 0:09:01]} 18. Nc5 {[%emt 0:18:58]} Nxc5 {[%emt 0:05:06]} 19. Bxc5 {[%emt 0:00:29]} Rfd8 {[%emt 0:32:56]} 20. Ke1 {[%emt 0:36:01]} Rac8 {[%emt 0:04:20]} 21. Be3 {[%emt 0:01:10]} dxc4 {[%emt 0:07:48]} 22. Bxc4 {[%emt 0:04:18]} Bxc4 {[%emt 0:01:05]} 23. bxc4 {[%emt 0:00:10]} Rd3 {[%emt 0:20:58]} 24. Ke2 {[%emt 0:00:09]} Ra3 {[%emt 0:02:07]} 25. Rc2 {[%emt 0:00:17]} fxg4 {[%emt 0:09:39]} 26. hxg4 {[%emt 0:00:15]} Rc6 {[%emt 0:00:01]} 27. Rd1 {[%emt 0:01:57]} Re6 {[%emt 0:02:40]} 28. Rd3 {[%emt 0:00:31]} Rxd3 {[%emt 0:00:22]} 29. Kxd3 {[%emt 0:00:08]} Rd6+ {[%emt 0:01:00]} 30. Ke2 {[%emt 0:00:10]} Kf7 {[%emt 0:00:50]} 31. c5 {[%emt 0:02:21]} Rd5 {[%emt 0:00:16]} 32. Rc4 {[%emt 0:00:35]} h5 {[%emt 0:00:51]} 33. Rb4 {[%emt 0:07:50]} hxg4 {[%emt 0:00:02]} 34. fxg4 {[%emt 0:00:03]} Rd7 {[%emt 0:00:39]} 35. Kf3 {[%emt 0:00:07]} Rc7 {[%emt 0:01:13]} 36. Ke4 {[%emt 0:00:09]} e6 {[%emt 0:00:11]} 37. Rb1 {[%emt 0:09:07]} Bf8 {[%emt 0:00:17]} 38. Rf1+ {[%emt 0:00:05]} Ke8 {[%emt 0:00:22]} 39. Rc1 {[%emt 0:01:08]} Rg7 {[%emt 0:00:16]} 40. g5 {[%emt 0:00:31]} Be7 {[%emt 0:00:54]} 41. Rg1 {[%emt 0:00:14]} Kf7 {[%emt 0:00:20]} 42. Ke5 {[%emt 0:00:17]} Rg6 {[%emt 0:00:48]} 43. Rb1 {[%emt 0:00:31]} Bxg5 {[%emt 0:00:23]} 44. Rxb7+ {[%emt 0:00:06]} Ke8 {[%emt 0:00:43]} 45. Bxg5 {[%emt 0:00:35]} Rxg5+ {[%emt 0:00:01]} 46. Kxe6 {[%emt 0:00:09]} Kd8 {[%emt 0:00:56]} 47. Kd6 {[%emt 0:02:44]} Kc8 {[%emt 0:00:36]} 48. Re7 {[%emt 0:00:30]} Rg6+ {[%emt 0:00:32]} 49. Re6 {[%emt 0:00:07]} Rg2 {[%emt 0:00:26]} 50. Re8+ {[%emt 0:00:12]} Kb7 {[%emt 0:00:05]} 51. c6+ {[%emt 0:00:05]} Kb6 {[%emt 0:00:21]} 52. Rb8+ {[%emt 0:00:07]} Ka7 {[%emt 0:00:05]} 53. c7 {[%emt 0:00:05]} Rd2+ {[%emt 0:00:47]} 54. Ke5 {[%emt 0:00:08]} 1-0